{"text_format":"1","workbook":"xlsx","n_sheets":21,"sheets":["ASCON_PRELIM","RAD_KERB","RAD_PAV","RAD_PATH","RAD_SIGN","RAD_VALD","DAD_STRUCT","DAD_PIPE","DAD_SQID","DAD_OC","DAD_DR","DAD_VALD","PAD_FENCE","PAD_STRUCT","PAD_FURN","PAD_EQUIP","PAD_VALD","MAD_RETWALL","MAD_DEVBDY","MAD_VALD","GENERIC_VALD"],"not_rendered":{"charts":0,"images":32,"macros":1,"external_links":0,"defined_names":42,"comments":2,"pivot_tables":0},"unopened":[],"bounds":{"document_bytes":16777216,"sheet_cells":100000,"rows_first":2000,"rows_last":500,"rows_between":2000,"halvings":0,"cell_chars":16384,"cell_head_chars":4096},"cells_cut":0,"cells_raw":0,"read":"whole","date_system":"1900"}

{"sheet":"ASCON_PRELIM","index":0,"n_rows":24,"n_cols":16,"rows_kept":24,"cut":false,"hidden":false,"merged":[[23,5,36,5],[22,0,36,0],[23,1,36,1],[23,2,36,2],[23,3,36,3],[23,4,36,4],[18,0,21,0],[8,3,8,4],[7,1,7,2],[0,0,4,5],[6,0,6,5],[9,0,12,0],[5,0,5,5],[13,0,17,0],[7,3,7,5]]}
[]
[]
[]
[]
[]
["SUBMISSION OF DIGITAL AS CONSTRUCTED INFORMATION",null,null,null,null,null,null,null,null,null,null,null,null,null,null,"Proposed"]
[null,null,null,null,null,null,null,null,null,null,null,null,null,null,null,"Proposed"]
[null,null,null,null,null,null,null,null,null,null,null,null,null,null,null,"Proposed"]
["CATEGORY","SUB - CATEGORY","SHEET",null,null,"TICK IF APPLICABLE",null,null,null,null,null,null,null,null,null,"Proposed"]
["ROADS","Kerb & Channel","RAD_KERB"]
[null,"Pavement / Surfacing","RAD_PAV"]
[null,"Pathways","RAD_PATH"]
[null,"Signs","RAD_SIGN"]
["SWATER","Inlet Pits / Manholes","DAD_STRUCT"]
[null,"Pipes","DAD_PIPE"]
[null,"Quality Improvement","DAD_SQID"]
[null,"Open Channel","DAD_OC"]
[null,"Detention / Retention","DAD_DR"]
["PARKS","Fences","PAD_FENCE"]
[null,"Structures","PAD_STRUCT"]
[null,"Furniture","PAD_FURN"]
[null,"Play Equipment","PAD_EQUIP"]
["MISC","Retaining walls","MAD_RETWALL"]
[null,"Development Information","MAD_DEVBDY"]

{"sheet":"RAD_KERB","index":1,"n_rows":34,"n_cols":15,"rows_kept":34,"cut":false,"hidden":true,"merged":[[3,12,4,12],[3,13,4,13],[0,4,1,10],[2,4,2,10]]}
[null,null,null,null,"ROADS ATTRIBUTE DATA FORM - KERB / KERB & CHANNEL"]
[]
[null,null,null,null,"NOTE: If assets are supplied in AutoCAD format, the information in the table below must be completed.  If assets are supplied in ASCII file format, the following information must be supplied in the file along with object X and Y (& Z where required) Coordinates."]
[null,null,null,null,"Entry ID","Profile Type","Median / Traffic Island","Infill Type","SW Pits","Crossovers","Length","Installation Date","Layername / Remarks","Asset\nStatus","Status"]
["ParentCode","AssetDescription","TypeID","Asset_ID","Entry_ID","Usertext1","UserCheck1","UserText3","UserNumber1","UserNumber2","Dimension2","DateCreated",null,null,"Status"]
[{"$f":"IF(E6=\"\",\"\",VALUE(\"013.002\"))","v":""},{"$f":"IF(E6=\"\",\"\",\"RAD_KERB - Asset Import \"&TEXT(TODAY(),\"dd/mm/yyyy\"))","v":""},null,null,null,null,null,null,null,null,null,null,null,null,"Proposed"]
[{"$f":"IF(E7=\"\",\"\",VALUE(\"013.002\"))","v":""},{"$f":"IF(E7=\"\",\"\",\"RAD_KERB - Asset Import \"&TEXT(TODAY(),\"dd/mm/yyyy\"))","v":""},null,null,null,null,null,null,null,null,null,null,null,null,"Proposed"]
["","",null,null,null,null,null,null,null,null,null,null,null,null,"Proposed"]
["","",null,null,null,null,null,null,null,null,null,null,null,null,"Proposed"]
["","",null,null,null,null,null,null,null,null,null,null,null,null,"Proposed"]
["","",null,null,null,null,null,null,null,null,null,null,null,null,"Proposed"]
["","",null,null,null,null,null,null,null,null,null,null,null,null,"Proposed"]
["","",null,null,null,null,null,null,null,null,null,null,null,null,"Proposed"]
["","",null,null,null,null,null,null,null,null,null,null,null,null,"Proposed"]
["",""]
["",""]
["",""]
["",""]
["",""]
["",""]
["",""]
["",""]
["",""]
["",""]
["",""]
["",""]
["",""]
["",""]
["",""]
["",""]
["",""]
["",""]
["",""]
["",""]

{"sheet":"RAD_PAV","index":2,"n_rows":34,"n_cols":21,"rows_kept":34,"cut":false,"hidden":true,"merged":[[3,17,4,17],[3,18,4,18],[3,19,4,19],[0,4,1,11],[2,4,2,11]]}
[null,null,null,null,"ROADS ATTRIBUTE DATA FORM - PAVEMENT / SURFACING"]
[]
[null,null,null,null,"NOTE: If assets are supplied in AutoCAD format, the information in the table below must be completed.  If assets are supplied in ASCII file format, the following information must be supplied in the file along with object X and Y (& Z where required) Coord"]
[null,null,null,null,"Entry ID","Surface Type","Spray Rate","Reinforcement","Base Depth","Base Type ","Sub-Base Depth","Sub-Base Type","Subgrade CBR","Pavement CBR","Seal Width ","Length","Installation Date","Road Name","Layer Name / Remarks","Asset Status","Status"]
["ParentCode","AssetDescription","TypeID","Asset_ID","Entry_ID","UserText2","Dimension7","UserText3","Dimension5","UserText2","Dimension6","UserText3","UserText4","UserText5","Dimension3","Dimension2","DateCreated",null,null,null,"Status"]
[]
[]
[]
[]
[]
[]
[]
[]
[{"$f":"IF(E14=\"\",\"\",VALUE(\"013.001\"))","v":""},{"$f":"IF(E14=\"\",\"\",\"RAD_PAV - Asset Import \"&TEXT(TODAY(),\"dd/mm/yyyy\"))","v":""}]
["",""]
["",""]
["",""]
["",""]
["",""]
["",""]
["",""]
["",""]
["",""]
["",""]
["",""]
["",""]
["",""]
["",""]
["",""]
["",""]
["",""]
["",""]
["",""]
["",""]

{"sheet":"RAD_PATH","index":3,"n_rows":34,"n_cols":13,"rows_kept":34,"cut":false,"hidden":true,"merged":[[3,11,4,11],[3,10,4,10],[0,4,1,10],[2,4,2,10]]}
[null,null,null,null,"ROADS ATTRIBUTE DATA FORM - PATHWAYS"]
[]
[null,null,null,null,"NOTE: If assets are supplied in AutoCAD format, the information in the table below must be completed.  If assets are supplied in ASCII file format, the following information must be supplied in the file along with object X and Y (& Z where required) Coordinates."]
[null,null,null,null,"Entry ID","Material Type","Width","Length","Crossovers","Installation Date","Layer Name / Remarks","Asset Status","Status"]
["ParentCode","AssetDescription","TypeID","Asset_ID","Entry_ID","UserText1","Dimension3","Dimension2","UserNumber1","DateCreated",null,null,"Status"]
[]
[]
[]
[]
[]
[]
[]
[]
[]
[]
[]
[]
[]
[]
[]
[{"$f":"IF(E21=\"\",\"\",VALUE(\"013.001\"))","v":""},{"$f":"IF(E21=\"\",\"\",\"RAD_PATH - Asset Import \"&TEXT(TODAY(),\"dd/mm/yyyy\"))","v":""}]
["",""]
["",""]
["",""]
["",""]
["",""]
["",""]
["",""]
["",""]
["",""]
["",""]
["",""]
["",""]
["",""]

{"sheet":"RAD_SIGN","index":4,"n_rows":34,"n_cols":12,"rows_kept":34,"cut":false,"hidden":true,"merged":[[3,9,4,9],[3,10,4,10],[0,4,1,10],[2,4,2,10]]}
[null,null,null,null,"ROADS ATTRIBUTE DATA FORM - SIGNS"]
[]
[null,null,null,null,"NOTE:If assets are suplied as blocks, the information in the table below must be completed.  If assets are supplied in ASCII file format, the following information must be supplied in the file, X and Y Coordinates, followed by the information required in the fields below"]
[null,null,null,null,"Entry ID","MUTCD Code","Common Name","No. of Supports","Installation Date","Layer Name / Remarks","Asset Status","Status"]
["ParentCode","AssetDescription","TypeID","Asset_ID","Entry_ID","UserText1","UserText2","Dimension1","UserDate1",null,null,"Status"]
[]
[]
[]
[]
[]
[]
[]
[]
[]
[{"$f":"IF(E15=\"\",\"\",VALUE(\"013.001\"))","v":""},{"$f":"IF(E15=\"\",\"\",\"RAD_SIGN - Asset Import \"&TEXT(TODAY(),\"dd/mm/yyyy\"))","v":""}]
["",""]
["",""]
["",""]
["",""]
["",""]
["",""]
["",""]
["",""]
["",""]
["",""]
["",""]
["",""]
["",""]
["",""]
["",""]
["",""]
["",""]
["",""]
["",""]

{"sheet":"RAD_VALD","index":5,"n_rows":31,"n_cols":7,"rows_kept":31,"cut":false,"hidden":true,"merged":[]}
["KC_PROFILE","CQ_KC_CODE","PAV_SEAL_TYPE","CQ_SEAL_CODE",null,"ROAD_HEIRARCHY","MEDIAN_INFILL_TYPE"]
[]
["B1 - Barrier Kerb & Channel - 600mm",783,"Asphalt - 40mm",439,null,"1 - State Highway","Garden - Planted"]
["B2 - Barrier Kerb & Channel - 450mm",784,"Bitumen - 2 Coat - 14/7mm",620,null,"2 - Major Arterial","Garden - Grassed"]
["B3 - Barrier Kerb - 150mm",785,"Bitumen - Chip - 7mm",1283,null,"3 - Arterial","Pavers"]
["C1 - Vee Channel - 900mm",789,"Bitumen - Chip - 10mm",1284,null,"4 - Feeder","Concrete - Plain"]
["F1 - Flush Kerb - 150mm",788,"Bitumen - Chip - 14mm",1307,null,"5 - Access","Concrete - Stamped/Stencilled"]
["M1 - Mountable Kerb & Channel - 600mm",786,"Bitumen - Slurry - 10mm",441]
["M3 - Mountable Kerb",1282,"Bitumen - Slurry - Reinforced Geotextile",702]
["SM1 - Semi-Mountable Kerb - 600mm",787,"Concrete - Reinforced - 150mm",619]
[]
[]
[]
[]
["PATH_SURFACE_TYPE","CQ_PATH_CODE","RAD_SIGN_TYPE","CQ_SIGN_CODE"]
[]
["Asphalt - 30mm",443,"???","???"]
["Boards - Recycled Plastic",1285]
["Boards - Timber",703]
["Concrete - Paved",501]
["Concrete - Pebble Render - 100mm",1288]
["Concrete - Pebble Render - 125mm","NO-CQ-CODE"]
["Concrete - Pebble Render - 75mm",1289]
["Concrete - Plain - 100mm",887]
["Concrete - Plain - 125mm","NO-CQ-CODE"]
["Concrete - Plain - 75mm",453]
["Concrete - Stamped/Stencilled - 100mm",1287]
["Concrete - Stamped/Stencilled - 125mm","NO-CQ-CODE"]
["Concrete - Stamped/Stencilled - 75mm",1286]
["Concrete - Step Stones",708]
["Gravel - 100mm",448]

{"sheet":"DAD_STRUCT","index":6,"n_rows":5,"n_cols":24,"rows_kept":5,"cut":false,"hidden":true,"merged":[[0,0,2,0],[0,23,2,23],[3,19,4,19],[3,21,4,21],[3,22,4,22],[2,4,2,10],[0,4,1,10]]}
[null,null,null,null,"DRAINAGE ATTRIBUTE DATA FORM - STRUCTURES (INLET PITS / MANHOLES)"]
[]
[null,null,null,null,"NOTE: If assets are supplied in AutoCAD format, the information in the table below must be completed.  If assets are supplied in ASCII file format, the following information must be supplied in the file along with object X and Y (& Z where required) Coord"]
[null,null,null,null,"Entry ID","Structure Type","Drainage Type","Structure Location","Structure Width/Dia","Structure Breadth","Structure Material","Cover Material","Pollutant Trap Insert","Trap Insert Type","Erosion Control","Erosion Control Type","Surface Level","Invert Level","Depth","Height \nDetermined","Installation \nDate","Layer Name / Remarks","Assets Status","STATUS"]
["ParentCode","AssetDescription","TypeID","Asset_ID","Entry_ID","UserText1","UserText2","UserText4","Dimension2","Dimension3","UserText5","UserText3","UserCheck1","UserText11","UserText10","UserText12","Dimension4","Dimension5","Dimension1",null,"UserDate1",null,null,"Status"]

{"sheet":"DAD_PIPE","index":7,"n_rows":5,"n_cols":21,"rows_kept":5,"cut":false,"hidden":true,"merged":[[3,15,4,15],[3,16,4,16],[3,18,4,18],[0,20,2,20],[0,18,2,18],[0,17,2,17],[0,16,2,16],[3,19,4,19],[0,2,3,2],[0,1,3,1],[0,0,3,0],[0,13,2,13],[0,3,3,3],[2,4,2,10],[0,4,1,10]]}
[null,null,null,null,"DRAINAGE ATTRIBUTE DATA - PIPES"]
[]
[null,null,null,null,"NOTE: If assets are supplied in AutoCAD format, the information in the table below must be completed.  If assets are supplied in ASCII file format, the following information must be supplied in the file along with object X and Y (& Z where required) Coordinates."]
[null,null,null,null,"Entry ID","Dimension 1","Dimension 2","Material","Drainage Type","Length","Class","USSL","USIL","DSSL","DSIL","Depth","Height Determined","Installation\nDate","Layer Name / Remarks","Asset Status","STATUS"]
["ParentCode","AssetDescription","TypeID","Asset_ID","Entry_ID","Dimension2","Dimension3","UserText2","UserText1","Dimension1","UserText3","Dimension8","Dimension4","Dimension7","Dimension5",null,null,"UserDate1",null,null,"Status"]

{"sheet":"DAD_SQID","index":8,"n_rows":5,"n_cols":18,"rows_kept":5,"cut":false,"hidden":true,"merged":[[3,16,4,16],[2,4,2,10],[0,4,1,10],[3,12,4,12],[3,13,4,13],[3,15,4,15]]}
[null,null,null,null,"DRAINAGE ATTRIBUTE DATA FORM - SQID"]
[]
[null,null,null,null,"NOTE: If assets are supplied in AutoCAD format, the information in the table below must be completed.  If assets are supplied in ASCII file format, the following information must be supplied in the file along with object X and Y (& Z where required) Coordinates."]
[null,null,null,null,"Entry ID","Trap Type","Manufacturer","Model","Location","Surface Level","Invert Level","Invert Level Sump","Depth","Height Determined","Installation Date","Layer Name / Remarks","Assets Status","Status"]
["ParentCode","AssetDescription","TypeID","Asset_ID","Entry_ID","UserText1","UserText2","UserText3","UserText4","UserNumber2","UserNumber2","UserNumber3",null,null,"UserDate1",null,null,"Status"]

{"sheet":"DAD_OC","index":9,"n_rows":5,"n_cols":17,"rows_kept":5,"cut":false,"hidden":true,"merged":[[0,4,1,10],[2,4,2,10],[3,15,4,15],[3,14,4,14],[3,12,4,12]]}
[null,null,null,null,"DRAINAGE ATTRIBUTE DATA FORM - OPEN CHANNELS"]
[]
[null,null,null,null,"NOTE: If assets are supplied in AutoCAD format, the information in the table below must be completed.  If assets are supplied in ASCII file format, the following information must be supplied in the file along with object X and Y (& Z where required) Coordinates."]
[null,null,null,null,"Entry ID","Type","Length","Bottom Width","Top Width","Bankfull Depth","USIL","DSIL","Height Determined","Installation Date","Layer Name / Remarks","Assets Status","STATUS"]
["ParentCode","AssetDescription","TypeID","Asset_ID","Entry_ID","UserText1","Dimension1","Dimension2","Dimension3","Dimension4","Dimension5","Dimension6",null,"UserDate1",null,null,"Status"]

{"sheet":"DAD_DR","index":10,"n_rows":5,"n_cols":18,"rows_kept":5,"cut":false,"hidden":true,"merged":[[3,16,4,16],[3,15,4,15],[3,13,4,13],[0,4,1,10],[2,4,2,10]]}
[null,null,null,null,"DRAINAGE ATTRIBUTE DATA FORM - DETENTION /  RETENTION BASIN"]
[]
[null,null,null,null,"NOTE: If assets are supplied in AutoCAD format, the information in the table below must be completed.  If assets are supplied in ASCII file format, the following information must be supplied in the file along with object X and Y (& Z where required) Coordinates."]
[null,null,null,null,"Entry ID","Basin Type","Invert Level","Temporary Storage Capacity","Underground Storage","Weir","Weir Height","Weir Material","Weir Length","Height Determined","Installation Date","Layername / Remarks","Assets  Status","STATUS"]
["ParentCode","AssetDescription","TypeID","Asset_ID","Entry_ID","UserText1","Dimension1","Dimension2","UserCheck1","UserCheck2","Dimension2","UserText2","Dimension3",null,"UserDate1",null,null,"Status"]

{"sheet":"DAD_VALD","index":11,"n_rows":276,"n_cols":17,"rows_kept":276,"cut":false,"hidden":true,"merged":[[0,11,0,12],[0,8,0,9]]}
["SWATER_PIT_BRAND","SWATER_TYPE","SWATER_IO_EROSION_CONTROL","SWATER_IO_LOCATION","SWATER_PIT_TYPE","SWATER_PIT_MATERIAL","SWATER_PIPE_CLASS","SWATER_PIPE_DIA","CQ_CULVERT_TYPEID_LOOKUP",null,"SWATER_PIPE_MATERIAL","CQ_PIPE_TYPEID_LOOKUPS",null,"CQ_PIT_TYPEID_LOOKUPS",null,"CQ_PTRAP_LOOKUPS"]
[]
["Humes","Culvert Cell","Stone Pitched","Beach","Single Grated Pit","PC Concrete",2,65,300300,790,"RCP","150 PP Ribbed 0-1m Deep",1158,"Access Chamber 0-1m Deep",272,"Gross Pollutant Trap 0-1m Deep",1293]
["Everhard","Sub-Soil","Cast Insitu Concrete","Open Channel","Double Grated Pit","CIS Concrete",3,90,300450,791,"FRC","150 PP Ribbed 1-2m Deep",1159,"Access Chamber 1-2m Deep",274,"Gross Pollutant Trap 1-2m Deep",1294]
["iPlex","Inter-Allotment","Pre-cast Concrete","Verge","Grated Deflector Pit","PVC",4,100,300600,792,"PVC","150 PP Ribbed 2-3m Deep",1160,"Access Chamber 2-3m Deep",273,"Gross Pollutant Trap 2-3m Deep",1295]
["Vinidex","Reticulation Main","Matress Gabion","Carriageway","Kerb Profile Pit","PP",6,150,300900,793,"RCBC","150 PP Ribbed 3-4m Deep",1161,"Access Chamber 3-4m Deep",275,"Gross Pollutant Trap 3-4m Deep",1296]
["Rocla",null,"Cube Gabion","Private Property","Side Entry Pit",null,8,225,3001200,794,"PP Ribbed","150 PP Ribbed 4-5m Deep",1162,"Access Chamber 4-5m Deep",276,"Gross Pollutant Trap 4-5m Deep",1297]
[null,null,null,"Saltwater Waterway","Double Side Entry Pit",null,10,300,450450,797,"PVC Draincoil","150 PP Ribbed 5-6m Deep",1163,"Access Chamber 5-6m Deep",277,"Gross Pollutant Trap 5-6m Deep",1298]
[null,null,null,"Freshwater Waterway","Junction Pit","SWATER_COVER_MATERIAL",100,375,450600,798,"HDPE Draincoil","150 PP Ribbed 6->m Deep",1164,"Access Chamber 6->m Deep",278,"Gross Pollutant Trap 6->m Deep",1299]
["SWATER_DAMAGE_LEVEL",null,"SWATER_PIT_PTRAP_TYPE",null,"Grated Field Pit",null,200,450,600600,800,null,"225 PP Ribbed 0-1m Deep",1165,"Double Grated Pit 0-1m Deep",1221,"Hydrodynamic Pollutant Trap 0-1m Deep",1300]
[null,null,null,null,"Access Chamber","Aluminium",400,525,600900,801,null,"225 PP Ribbed 1-2m Deep",1166,"Double Grated Pit 1-2m Deep",1222,"Hydrodynamic Pollutant Trap 1-2m Deep",1301]
["1 - NONE",null,"Net",null,"Inlet Headwall","Cast Iron","SN6",600,6001200,802,null,"225 PP Ribbed 2-3m Deep",1167,"Double Grated Pit 2-3m Deep",1223,"Hydrodynamic Pollutant Trap 2-3m Deep",1302]
["2 - MINOR",null,"Basket/Cage",null,"Outlet Headwall","Conctete","SN8",675,6001500,814,null,"225 PP Ribbed 3-4m Deep",1168,"Double Grated Pit 3-4m Deep",1224,"Hydrodynamic Pollutant Trap 3-4m Deep",1303]
["3 - MODERATE",null,"Filtration Media",null,"Subsoil Cleanout","Concrete (Gattic)","SN10",750,6001800,815,null,"225 PP Ribbed 4-5m Deep",1169,"Double Grated Pit 4-5m Deep",1225,"Hydrodynamic Pollutant Trap 4-5m Deep",1304]
["4 - MAJOR",null,"Rack",null,"Inspection Opening","Fibreglass",null,825,6002100,816,null,"225 PP Ribbed 5-6m Deep",1170,"Double Grated Pit 5-6m Deep",1226,"Hydrodynamic Pollutant Trap 5-6m Deep",1305]
["5 - FAILURE",null,null,null,null,"Polypropylene",null,900,900900,804,null,"225 PP Ribbed 6->m Deep",1171,"Double Grated Pit 6->m Deep",1227,"Hydrodynamic Pollutant Trap 6->m Deep",1306]
[null,null,null,null,null,"PVC",null,1050,9001200,805,null,"300 PP Ribbed 0-1m Deep",888,"Double Side Entry Pit 0-1m Deep",1237]
["SWATER_PIPE_DAMAGE",null,"SWATER_PTRAP_TYPE",null,null,"Steel Bright",null,1200,9001500,817,null,"300 PP Ribbed 1-2m Deep",889,"Double Side Entry Pit 1-2m Deep",1238,"CQ_OC_LOOKUPS"]
[null,null,null,null,null,"Steel Galvanised",null,1350,9001800,818,null,"300 PP Ribbed 2-3m Deep",890,"Double Side Entry Pit 2-3m Deep",1239]
["CRACKING",null,"Primary",null,null,null,null,1500,9002100,819,null,"300 PP Ribbed 3-4m Deep",891,"Double Side Entry Pit 3-4m Deep",1240,"Open Channel - Concrete Lined",111]
["SEDIMENTATION",null,"Secondary",null,null,"SWATER_WEIR_MATERIAL",null,1650,9002400,820,null,"300 PP Ribbed 4-5m Deep",892,"Double Side Entry Pit 4-5m Deep",1241,"Open Channel - Vegetated",222]
["MOVEMENT",null,null,null,null,null,null,1800,9002700,821,null,"300 PP Ribbed 5-6m Deep",893,"Double Side Entry Pit 5-6m Deep",1242,"Open Channel - Vegetated Concrete Invert",333]
["ROOT INTRUSION",null,"SWATER_OC_TYPE",null,null,"Concrete",null,1950,12001200,807,null,"300 PP Ribbed 6->m Deep",908,"Double Side Entry Pit 6->m Deep",1243,"Open Channel - Vegetated Rock Invert",444]
[null,null,null,null,null,"Roadway",null,2100,12001500,808,null,"375 PP Ribbed 0-1m Deep",1172,"Inlet Headwall 0-1m Deep",281,"Open Channel - OverLand Flow Path",555]
["SWATER_PIT_DAMAGE",null,"Concrete Lined",null,null,"Turf",null,2250,12001800,809,null,"375 PP Ribbed 1-2m Deep",1173,"Inlet Headwall 1-2m Deep",279,"Open Channel - Rock Lined",666]
[null,null,"Vegetated",null,null,null,null,2400,12002100,262,null,"375 PP Ribbed 2-3m Deep",1174,"Inlet Headwall 2-3m Deep",286]
["GRATE DEGRADED",null,"Vegetated Concrete Invert",null,null,null,null,2700,12002400,598,null,"375 PP Ribbed 3-4m Deep",1175,"Inlet Headwall 3-4m Deep",1244,"CQ_DR_LOOKUPS"]
["CRACKING",null,"Vegetated Rock Invert",null,null,null,null,3000,12002700,810,null,"375 PP Ribbed 4-5m Deep",1176,"Inlet Headwall 3-5m Deep",1245]
["SUBSIDENCE",null,"OverLand Flow Path",null,null,null,null,3300,12003000,811,null,"375 PP Ribbed 5-6m Deep",1177,"Inlet Headwall 5-6m Deep",1246,"Basin - Retardation Basin - Dry",777]
["SEDIMENTATION",null,"Rock Lined",null,null,null,null,3600,12003300,812,null,"375 PP Ribbed 6->m Deep",1178,"Inlet Headwall 6->m Deep",1247,"Basin - Retardation Basin - Wet",888]
[null,null,null,null,null,null,null,null,12003600,813,null,"450 PP Ribbed 0-1m Deep",1179,"Outlet Headwall 0-1m Deep",281]
[null,null,"SWATER_DR_TYPE",null,null,null,null,null,15001500,823,null,"450 PP Ribbed 1-2m Deep",1180,"Outlet Headwall 1-2m Deep",279]
[null,null,null,null,null,null,null,null,15001800,824,null,"450 PP Ribbed 2-3m Deep",1181,"Outlet Headwall 2-3m Deep",286]
[null,null,"Retardation Basin - Dry",null,null,null,null,null,15002100,825,null,"450 PP Ribbed 3-4m Deep",1182,"Outlet Headwall 3-4m Deep",1244]
[null,null,"Retardation Basin - Wet",null,null,null,null,null,15002400,826,null,"450 PP Ribbed 4-5m Deep",1183,"Outlet Headwall 4-5m Deep",1245]
[null,null,null,null,null,null,null,null,15002700,827,null,"450 PP Ribbed 5-6m Deep",1184,"Outlet Headwall 5-6m Deep",1246]
[null,null,null,null,null,null,null,null,15003000,828,null,"450 PP Ribbed 6->m Deep",1185,"Outlet Headwall 6->m Deep",1247]
[null,null,null,null,null,null,null,null,15003300,829,null,"525 PP Ribbed 0-1m Deep",1186,"Single Grated Pit 0-1m Deep",901]
[null,null,null,null,null,null,null,null,15003600,830,null,"525 PP Ribbed 1-2m Deep",1187,"Single Grated Pit 1-2m Deep",902]
[null,null,null,null,null,null,null,null,18001800,832,null,"525 PP Ribbed 2-3m Deep",1188,"Single Grated Pit 2-3m Deep",903]
[null,null,null,null,null,null,null,null,18002100,833,null,"525 PP Ribbed 3-4m Deep",1189,"Single Grated Pit 3-4m Deep",904]
[null,null,null,null,null,null,null,null,18002400,834,null,"525 PP Ribbed 4-5m Deep",1190,"Single Grated Pit 4-5m Deep",905]
[null,null,null,null,null,null,null,null,18002700,835,null,"525 PP Ribbed 5-6m Deep",1191,"Single Grated Pit 5-6m Deep",906]
[null,null,null,null,null,null,null,null,18003000,836,null,"525 PP Ribbed 6->m Deep",1192,"Single Grated Pit 6->m Deep",907]
[null,null,null,null,null,null,null,null,18003300,837,null,"600 PP Ribbed 0-1m Deep",1193,"Grated Deflector Pit 0-1m Deep",1214]
[null,null,null,null,null,null,null,null,18003600,838,null,"600 PP Ribbed 1-2m Deep",1194,"Grated Deflector Pit 1-2m Deep",1215]
[null,null,null,null,null,null,null,null,21002100,840,null,"600 PP Ribbed 2-3m Deep",1195,"Grated Deflector Pit 2-3m Deep",1216]
[null,null,null,null,null,null,null,null,21002400,841,null,"600 PP Ribbed 3-4m Deep",1196,"Grated Deflector Pit 3-4m Deep",1217]
[null,null,null,null,null,null,null,null,21002700,842,null,"600 PP Ribbed 4-5m Deep",1197,"Grated Deflector Pit 4-5m Deep",1218]
[null,null,null,null,null,null,null,null,21003000,843,null,"600 PP Ribbed 5-6m Deep",1198,"Grated Deflector Pit 5-6m Deep",1219]
[null,null,null,null,null,null,null,null,21003300,844,null,"600 PP Ribbed 6->m Deep",1199,"Grated Deflector Pit 6->m Deep",1220]
[null,null,null,null,null,null,null,null,21003600,845,null,"750 PP Ribbed 0-1m Deep",1200,"Grated Field Pit 0-1m Deep",894]
[null,null,null,null,null,null,null,null,24002400,847,null,"750 PP Ribbed 1-2m Deep",1201,"Grated Field Pit 1-2m Deep",895]
[null,null,null,null,null,null,null,null,24002700,848,null,"750 PP Ribbed 2-3m Deep",1202,"Grated Field Pit 2-3m Deep",896]
[null,null,null,null,null,null,null,null,24003000,849,null,"750 PP Ribbed 3-4m Deep",1203,"Grated Field Pit 3-4m Deep",897]
[null,null,null,null,null,null,null,null,24003300,1290,null,"750 PP Ribbed 4-5m Deep",1204,"Grated Field Pit 4-5m Deep",898]
[null,null,null,null,null,null,null,null,24003600,850,null,"750 PP Ribbed 5-6m Deep",1205,"Grated Field Pit 5-6m Deep",899]
[null,null,null,null,null,null,null,null,27002700,852,null,"750 PP Ribbed 6->m Deep",1206,"Grated Field Pit 6->m Deep",900]
[null,null,null,null,null,null,null,null,27003000,853,null,"900 PP Ribbed 0-1m Deep",1207,"Junction Pit 0-1m Deep",1229]
[null,null,null,null,null,null,null,null,27003300,854,null,"900 PP Ribbed 1-2m Deep",1208,"Junction Pit 1-2m Deep",1230]
[null,null,null,null,null,null,null,null,27003600,855,null,"900 PP Ribbed 2-3m Deep",1209,"Junction Pit 2-3m Deep",1231]
[null,null,null,null,null,null,null,null,30003000,857,null,"900 PP Ribbed 3-4m Deep",1210,"Junction Pit 3-4m Deep",1232]
[null,null,null,null,null,null,null,null,30003300,858,null,"900 PP Ribbed 4-5m Deep",1211,"Junction Pit 4-5m Deep",1233]
[null,null,null,null,null,null,null,null,30003600,859,null,"900 PP Ribbed 5-6m Deep",1212,"Junction Pit 5-6m Deep",1234]
[null,null,null,null,null,null,null,null,33003300,861,null,"900 PP Ribbed 6->m Deep",1213,"Junction Pit 6->m Deep",1235]
[null,null,null,null,null,null,null,null,33003600,862,null,"225 RCP 0-1m Deep",933,"Side Entry Pit 0-1m Deep",296]
[null,null,null,null,null,null,null,null,36003600,864,null,"225 RCP 1-2m Deep",934,"Side Entry Pit 1-2m Deep",297]
[null,null,null,null,null,null,null,null,null,null,null,"225 RCP 2-3m Deep",935,"Side Entry Pit 2-3m Deep",298]
[null,null,null,null,null,null,null,null,null,null,null,"225 RCP 3-4m Deep",936,"Side Entry Pit 3-4m Deep",299]
[null,null,null,null,null,null,null,null,null,null,null,"225 RCP 4-5m Deep",937,"Side Entry Pit 4-5m Deep",300]
[null,null,null,null,null,null,null,null,null,null,null,"225 RCP 5-6m Deep",938,"Side Entry Pit 5-6m Deep",301]
[null,null,null,null,null,null,null,null,null,null,null,"225 RCP 6->m Deep",939,"Side Entry Pit 6->m Deep",302]
[null,null,null,null,null,null,null,null,null,null,null,"300 RCP 0-1m Deep",949,"Subsoil Cleanout",886]
[null,null,null,null,null,null,null,null,null,null,null,"300 RCP 1-2m Deep",950,"Kerb Profile Pit 0-1m Deep",1271]
[null,null,null,null,null,null,null,null,null,null,null,"300 RCP 2-3m Deep",951,"Kerb Profile Pit 2-3m Deep",1272]
[null,null,null,null,null,null,null,null,null,null,null,"300 RCP 3-4m Deep",952,"Kerb Profile Pit 3-4m Deep",1273]
[null,null,null,null,null,null,null,null,null,null,null,"300 RCP 4-5m Deep",953,"Kerb Profile Pit 4-5m Deep",1274]
[null,null,null,null,null,null,null,null,null,null,null,"300 RCP 5-6m Deep",954,"Kerb Profile Pit 5-6m Deep",1275]
[null,null,null,null,null,null,null,null,null,null,null,"300 RCP 6->m Deep",955,"Kerb Profile Pit 6->m Deep",1276]
[null,null,null,null,null,null,null,null,null,null,null,"375 RCP 0-1m Deep",956,"Inspection Opening",111]
[null,null,null,null,null,null,null,null,null,null,null,"375 RCP 1-2m Deep",957]
[null,null,null,null,null,null,null,null,null,null,null,"375 RCP 2-3m Deep",958]
[null,null,null,null,null,null,null,null,null,null,null,"375 RCP 3-4m Deep",959]
[null,null,null,null,null,null,null,null,null,null,null,"375 RCP 4-5m Deep",960]
[null,null,null,null,null,null,null,null,null,null,null,"375 RCP 5-6m Deep",961]
[null,null,null,null,null,null,null,null,null,null,null,"375 RCP 6->m Deep",962]
[null,null,null,null,null,null,null,null,null,null,null,"450 RCP 0-1m Deep",963]
[null,null,null,null,null,null,null,null,null,null,null,"450 RCP 1-2m Deep",964]
[null,null,null,null,null,null,null,null,null,null,null,"450 RCP 2-3m Deep",965]
[null,null,null,null,null,null,null,null,null,null,null,"450 RCP 3-4m Deep",966]
[null,null,null,null,null,null,null,null,null,null,null,"450 RCP 4-5m Deep",967]
[null,null,null,null,null,null,null,null,null,null,null,"450 RCP 5-6m Deep",968]
[null,null,null,null,null,null,null,null,null,null,null,"450 RCP 6->m Deep",969]
[null,null,null,null,null,null,null,null,null,null,null,"525 RCP 0-1m Deep",970]
[null,null,null,null,null,null,null,null,null,null,null,"525 RCP 1-2m Deep",971]
[null,null,null,null,null,null,null,null,null,null,null,"525 RCP 2-3m Deep",972]
[null,null,null,null,null,null,null,null,null,null,null,"525 RCP 3-4m Deep",973]
[null,null,null,null,null,null,null,null,null,null,null,"525 RCP 4-5m Deep",974]
[null,null,null,null,null,null,null,null,null,null,null,"525 RCP 5-6m Deep",975]
[null,null,null,null,null,null,null,null,null,null,null,"525 RCP 6->m Deep",976]
[null,null,null,null,null,null,null,null,null,null,null,"600 RCP 0-1m Deep",977]
[null,null,null,null,null,null,null,null,null,null,null,"600 RCP 1-2m Deep",978]
[null,null,null,null,null,null,null,null,null,null,null,"600 RCP 2-3m Deep",979]
[null,null,null,null,null,null,null,null,null,null,null,"600 RCP 3-4m Deep",980]
[null,null,null,null,null,null,null,null,null,null,null,"600 RCP 4-5m Deep",981]
[null,null,null,null,null,null,null,null,null,null,null,"600 RCP 5-6m Deep",982]
[null,null,null,null,null,null,null,null,null,null,null,"600 RCP 6->m Deep",983]
[null,null,null,null,null,null,null,null,null,null,null,"675 RCP 0-1m Deep",984]
[null,null,null,null,null,null,null,null,null,null,null,"675 RCP 1-2m Deep",985]
[null,null,null,null,null,null,null,null,null,null,null,"675 RCP 2-3m Deep",986]
[null,null,null,null,null,null,null,null,null,null,null,"675 RCP 3-4m Deep",987]
[null,null,null,null,null,null,null,null,null,null,null,"675 RCP 4-5m Deep",988]
[null,null,null,null,null,null,null,null,null,null,null,"675 RCP 5-6m Deep",989]
[null,null,null,null,null,null,null,null,null,null,null,"675 RCP 6->m Deep",990]
[null,null,null,null,null,null,null,null,null,null,null,"750 RCP 0-1m Deep",991]
[null,null,null,null,null,null,null,null,null,null,null,"750 RCP 1-2m Deep",992]
[null,null,null,null,null,null,null,null,null,null,null,"750 RCP 2-3m Deep",993]
[null,null,null,null,null,null,null,null,null,null,null,"750 RCP 3-4m Deep",994]
[null,null,null,null,null,null,null,null,null,null,null,"750 RCP 4-5m Deep",995]
[null,null,null,null,null,null,null,null,null,null,null,"750 RCP 5-6m Deep",996]
[null,null,null,null,null,null,null,null,null,null,null,"750 RCP 6->m Deep",997]
[null,null,null,null,null,null,null,null,null,null,null,"825 RCP 0-1m Deep",998]
[null,null,null,null,null,null,null,null,null,null,null,"825 RCP 1-2m Deep",999]
[null,null,null,null,null,null,null,null,null,null,null,"825 RCP 2-3m Deep",1000]
[null,null,null,null,null,null,null,null,null,null,null,"825 RCP 3-4m Deep",1001]
[null,null,null,null,null,null,null,null,null,null,null,"825 RCP 4-5m Deep",1002]
[null,null,null,null,null,null,null,null,null,null,null,"825 RCP 5-6m Deep",1003]
[null,null,null,null,null,null,null,null,null,null,null,"825 RCP 6->m Deep",1004]
[null,null,null,null,null,null,null,null,null,null,null,"900 RCP 0-1m Deep",1005]
[null,null,null,null,null,null,null,null,null,null,null,"900 RCP 1-2m Deep",1006]
[null,null,null,null,null,null,null,null,null,null,null,"900 RCP 2-3m Deep",1007]
[null,null,null,null,null,null,null,null,null,null,null,"900 RCP 3-4m Deep",1008]
[null,null,null,null,null,null,null,null,null,null,null,"900 RCP 4-5m Deep",1009]
[null,null,null,null,null,null,null,null,null,null,null,"900 RCP 5-6m Deep",1010]
[null,null,null,null,null,null,null,null,null,null,null,"900 RCP 6->m Deep",1011]
[null,null,null,null,null,null,null,null,null,null,null,"1050 RCP 0-1m Deep",1012]
[null,null,null,null,null,null,null,null,null,null,null,"1050 RCP 1-2m Deep",1013]
[null,null,null,null,null,null,null,null,null,null,null,"1050 RCP 2-3m Deep",1014]
[null,null,null,null,null,null,null,null,null,null,null,"1050 RCP 3-4m Deep",1015]
[null,null,null,null,null,null,null,null,null,null,null,"1050 RCP 4-5m Deep",1016]
[null,null,null,null,null,null,null,null,null,null,null,"1050 RCP 5-6m Deep",1017]
[null,null,null,null,null,null,null,null,null,null,null,"1050 RCP 6->m Deep",1018]
[null,null,null,null,null,null,null,null,null,null,null,"1200 RCP 0-1m Deep",1019]
[null,null,null,null,null,null,null,null,null,null,null,"1200 RCP 1-2m Deep",1020]
[null,null,null,null,null,null,null,null,null,null,null,"1200 RCP 2-3m Deep",1021]
[null,null,null,null,null,null,null,null,null,null,null,"1200 RCP 3-4m Deep",1022]
[null,null,null,null,null,null,null,null,null,null,null,"1200 RCP 4-5m Deep",1023]
[null,null,null,null,null,null,null,null,null,null,null,"1200 RCP 5-6m Deep",1024]
[null,null,null,null,null,null,null,null,null,null,null,"1200 RCP 6->m Deep",1025]
[null,null,null,null,null,null,null,null,null,null,null,"1350 RCP 0-1m Deep",1026]
[null,null,null,null,null,null,null,null,null,null,null,"1350 RCP 1-2m Deep",1027]
[null,null,null,null,null,null,null,null,null,null,null,"1350 RCP 2-3m Deep",1028]
[null,null,null,null,null,null,null,null,null,null,null,"1350 RCP 3-4m Deep",1029]
[null,null,null,null,null,null,null,null,null,null,null,"1350 RCP 4-5m Deep",1030]
[null,null,null,null,null,null,null,null,null,null,null,"1350 RCP 5-6m Deep",1031]
[null,null,null,null,null,null,null,null,null,null,null,"1350 RCP 6->m Deep",1032]
[null,null,null,null,null,null,null,null,null,null,null,"1500 RCP 0-1m Deep",1033]
[null,null,null,null,null,null,null,null,null,null,null,"1500 RCP 1-2m Deep",1034]
[null,null,null,null,null,null,null,null,null,null,null,"1500 RCP 2-3m Deep",1035]
[null,null,null,null,null,null,null,null,null,null,null,"1500 RCP 3-4m Deep",1036]
[null,null,null,null,null,null,null,null,null,null,null,"1500 RCP 4-5m Deep",1037]
[null,null,null,null,null,null,null,null,null,null,null,"1500 RCP 5-6m Deep",1038]
[null,null,null,null,null,null,null,null,null,null,null,"1500 RCP 6->m Deep",1039]
[null,null,null,null,null,null,null,null,null,null,null,"1650 RCP 0-1m Deep",1040]
[null,null,null,null,null,null,null,null,null,null,null,"1650 RCP 1-2m Deep",1041]
[null,null,null,null,null,null,null,null,null,null,null,"1650 RCP 2-3m Deep",1042]
[null,null,null,null,null,null,null,null,null,null,null,"1650 RCP 3-4m Deep",1043]
[null,null,null,null,null,null,null,null,null,null,null,"1650 RCP 4-5m Deep",1044]
[null,null,null,null,null,null,null,null,null,null,null,"1650 RCP 5-6m Deep",1045]
[null,null,null,null,null,null,null,null,null,null,null,"1650 RCP 6->m Deep",1046]
[null,null,null,null,null,null,null,null,null,null,null,"1800 RCP 0-1m Deep",1047]
[null,null,null,null,null,null,null,null,null,null,null,"1800 RCP 1-2m Deep",1048]
[null,null,null,null,null,null,null,null,null,null,null,"1800 RCP 2-3m Deep",1049]
[null,null,null,null,null,null,null,null,null,null,null,"1800 RCP 3-4m Deep",1050]
[null,null,null,null,null,null,null,null,null,null,null,"1800 RCP 4-5m Deep",1051]
[null,null,null,null,null,null,null,null,null,null,null,"1800 RCP 5-6m Deep",1052]
[null,null,null,null,null,null,null,null,null,null,null,"1800 RCP 6->m Deep",1053]
[null,null,null,null,null,null,null,null,null,null,null,"1950 RCP 0-1m Deep",1054]
[null,null,null,null,null,null,null,null,null,null,null,"1950 RCP 1-2m Deep",1055]
[null,null,null,null,null,null,null,null,null,null,null,"1950 RCP 2-3m Deep",1056]
[null,null,null,null,null,null,null,null,null,null,null,"1950 RCP 3-4m Deep",1057]
[null,null,null,null,null,null,null,null,null,null,null,"1950 RCP 4-5m Deep",1058]
[null,null,null,null,null,null,null,null,null,null,null,"1950 RCP 5-6m Deep",1059]
[null,null,null,null,null,null,null,null,null,null,null,"1950 RCP 6->m Deep",1060]
[null,null,null,null,null,null,null,null,null,null,null,"2100 RCP 0-1m Deep",1061]
[null,null,null,null,null,null,null,null,null,null,null,"2100 RCP 1-2m Deep",1062]
[null,null,null,null,null,null,null,null,null,null,null,"2100 RCP 2-3m Deep",1063]
[null,null,null,null,null,null,null,null,null,null,null,"2100 RCP 3-4m Deep",1064]
[null,null,null,null,null,null,null,null,null,null,null,"2100 RCP 4-5m Deep",1065]
[null,null,null,null,null,null,null,null,null,null,null,"2100 RCP 5-6m Deep",1066]
[null,null,null,null,null,null,null,null,null,null,null,"2100 RCP 6->m Deep",1067]
[null,null,null,null,null,null,null,null,null,null,null,"2250 RCP 0-1m Deep",1068]
[null,null,null,null,null,null,null,null,null,null,null,"2250 RCP 1-2m Deep",1069]
[null,null,null,null,null,null,null,null,null,null,null,"2250 RCP 2-3m Deep",1070]
[null,null,null,null,null,null,null,null,null,null,null,"2250 RCP 3-4m Deep",1071]
[null,null,null,null,null,null,null,null,null,null,null,"2250 RCP 4-5m Deep",1072]
[null,null,null,null,null,null,null,null,null,null,null,"2250 RCP 5-6m Deep",1073]
[null,null,null,null,null,null,null,null,null,null,null,"2250 RCP 6->m Deep",1074]
[null,null,null,null,null,null,null,null,null,null,null,"2400 RCP 0-1m Deep",1075]
[null,null,null,null,null,null,null,null,null,null,null,"2400 RCP 1-2m Deep",1076]
[null,null,null,null,null,null,null,null,null,null,null,"2400 RCP 2-3m Deep",1077]
[null,null,null,null,null,null,null,null,null,null,null,"2400 RCP 3-4m Deep",1078]
[null,null,null,null,null,null,null,null,null,null,null,"2400 RCP 4-5m Deep",1079]
[null,null,null,null,null,null,null,null,null,null,null,"2400 RCP 5-6m Deep",1080]
[null,null,null,null,null,null,null,null,null,null,null,"2400 RCP 6->m Deep",1081]
[null,null,null,null,null,null,null,null,null,null,null,"2700 RCP 0-1m Deep",1082]
[null,null,null,null,null,null,null,null,null,null,null,"2700 RCP 1-2m Deep",1083]
[null,null,null,null,null,null,null,null,null,null,null,"2700 RCP 2-3m Deep",1084]
[null,null,null,null,null,null,null,null,null,null,null,"2700 RCP 3-4m Deep",1085]
[null,null,null,null,null,null,null,null,null,null,null,"2700 RCP 4-5m Deep",1086]
[null,null,null,null,null,null,null,null,null,null,null,"2700 RCP 5-6m Deep",1087]
[null,null,null,null,null,null,null,null,null,null,null,"2700 RCP 6->m Deep",1088]
[null,null,null,null,null,null,null,null,null,null,null,"3000 RCP 0-1m Deep",1089]
[null,null,null,null,null,null,null,null,null,null,null,"3000 RCP 1-2m Deep",1090]
[null,null,null,null,null,null,null,null,null,null,null,"3000 RCP 2-3m Deep",1091]
[null,null,null,null,null,null,null,null,null,null,null,"3000 RCP 3-4m Deep",1092]
[null,null,null,null,null,null,null,null,null,null,null,"3000 RCP 4-5m Deep",1093]
[null,null,null,null,null,null,null,null,null,null,null,"3000 RCP 5-6m Deep",1094]
[null,null,null,null,null,null,null,null,null,null,null,"3000 RCP 6->m Deep",1095]
[null,null,null,null,null,null,null,null,null,null,null,"3300 RCP 0-1m Deep",1096]
[null,null,null,null,null,null,null,null,null,null,null,"3300 RCP 1-2m Deep",1097]
[null,null,null,null,null,null,null,null,null,null,null,"3300 RCP 2-3m Deep",1098]
[null,null,null,null,null,null,null,null,null,null,null,"3300 RCP 3-4m Deep",1099]
[null,null,null,null,null,null,null,null,null,null,null,"3300 RCP 4-5m Deep",1100]
[null,null,null,null,null,null,null,null,null,null,null,"3300 RCP 5-6m Deep",1101]
[null,null,null,null,null,null,null,null,null,null,null,"3300 RCP 6->m Deep",1102]
[null,null,null,null,null,null,null,null,null,null,null,"3600 RCP 0-1m Deep",1103]
[null,null,null,null,null,null,null,null,null,null,null,"3600 RCP 1-2m Deep",1104]
[null,null,null,null,null,null,null,null,null,null,null,"3600 RCP 2-3m Deep",1105]
[null,null,null,null,null,null,null,null,null,null,null,"3600 RCP 3-4m Deep",1106]
[null,null,null,null,null,null,null,null,null,null,null,"3600 RCP 4-5m Deep",1107]
[null,null,null,null,null,null,null,null,null,null,null,"3600 RCP 5-6m Deep",1108]
[null,null,null,null,null,null,null,null,null,null,null,"3600 RCP 6->m Deep",1109]
[null,null,null,null,null,null,null,null,null,null,null,"100 PVC 0-1m Deep",1115]
[null,null,null,null,null,null,null,null,null,null,null,"100 PVC 1-2m Deep",1116]
[null,null,null,null,null,null,null,null,null,null,null,"100 PVC 2-3m Deep",1117]
[null,null,null,null,null,null,null,null,null,null,null,"100 PVC 3-4m Deep",1118]
[null,null,null,null,null,null,null,null,null,null,null,"100 PVC 4-5m Deep",1119]
[null,null,null,null,null,null,null,null,null,null,null,"100 PVC 5-6m Deep",1120]
[null,null,null,null,null,null,null,null,null,null,null,"100 PVC 6->m Deep",1121]
[null,null,null,null,null,null,null,null,null,null,null,"150 PVC 0-1m Deep",1122]
[null,null,null,null,null,null,null,null,null,null,null,"150 PVC 1-2m Deep",1123]
[null,null,null,null,null,null,null,null,null,null,null,"150 PVC 2-3m Deep",1124]
[null,null,null,null,null,null,null,null,null,null,null,"150 PVC 3-4m Deep",1125]
[null,null,null,null,null,null,null,null,null,null,null,"150 PVC 4-5m Deep",1126]
[null,null,null,null,null,null,null,null,null,null,null,"150 PVC 5-6m Deep",1127]
[null,null,null,null,null,null,null,null,null,null,null,"150 PVC 6->m Deep",1128]
[null,null,null,null,null,null,null,null,null,null,null,"225 PVC 0-1m Deep",1129]
[null,null,null,null,null,null,null,null,null,null,null,"225 PVC 1-2m Deep",1130]
[null,null,null,null,null,null,null,null,null,null,null,"225 PVC 2-3m Deep",1131]
[null,null,null,null,null,null,null,null,null,null,null,"225 PVC 3-4m Deep",1132]
[null,null,null,null,null,null,null,null,null,null,null,"225 PVC 4-5m Deep",1133]
[null,null,null,null,null,null,null,null,null,null,null,"225 PVC 5-6m Deep",1134]
[null,null,null,null,null,null,null,null,null,null,null,"225 PVC 6->m Deep",1135]
[null,null,null,null,null,null,null,null,null,null,null,"300 PVC 0-1m Deep",1136]
[null,null,null,null,null,null,null,null,null,null,null,"300 PVC 1-2m Deep",1137]
[null,null,null,null,null,null,null,null,null,null,null,"300 PVC 2-3m Deep",1138]
[null,null,null,null,null,null,null,null,null,null,null,"300 PVC 3-4m Deep",1139]
[null,null,null,null,null,null,null,null,null,null,null,"300 PVC 4-5m Deep",1140]
[null,null,null,null,null,null,null,null,null,null,null,"300 PVC 5-6m Deep",1141]
[null,null,null,null,null,null,null,null,null,null,null,"300 PVC 6->m Deep",1142]
[null,null,null,null,null,null,null,null,null,null,null,"375 PVC 0-1m Deep",1143]
[null,null,null,null,null,null,null,null,null,null,null,"375 PVC 1-2m Deep",1144]
[null,null,null,null,null,null,null,null,null,null,null,"375 PVC 2-3m Deep",1145]
[null,null,null,null,null,null,null,null,null,null,null,"375 PVC 3-4m Deep",1146]
[null,null,null,null,null,null,null,null,null,null,null,"375 PVC 4-5m Deep",1147]
[null,null,null,null,null,null,null,null,null,null,null,"375 PVC 5-6m Deep",1148]
[null,null,null,null,null,null,null,null,null,null,null,"375 PVC 6->m Deep",1149]
[null,null,null,null,null,null,null,null,null,null,null,"100 PVC Draincoil 0-1m Deep",1150]
[null,null,null,null,null,null,null,null,null,null,null,"100 PVC Draincoil 1-2m Deep",1151]
[null,null,null,null,null,null,null,null,null,null,null,"65 PVC Draincoil 0-1m Deep",1156]
[null,null,null,null,null,null,null,null,null,null,null,"65 PVC Draincoil 1-2m Deep",1157]
[null,null,null,null,null,null,null,null,null,null,null,"100 HDPE Draincoil 0-1m Deep",1152]
[null,null,null,null,null,null,null,null,null,null,null,"100 HDPE Draincoil 1-2m Deep",1153]
[null,null,null,null,null,null,null,null,null,null,null,"65 HDPE Draincoil 0-1m Deep",1154]
[null,null,null,null,null,null,null,null,null,null,null,"65 HDPE Draincoil 1-2m Deep",1155]

{"sheet":"PAD_FENCE","index":12,"n_rows":14,"n_cols":15,"rows_kept":14,"cut":false,"hidden":true,"merged":[[3,12,4,12],[3,13,4,13],[0,4,1,10],[2,4,2,10]]}
[null,null,null,null,"PARK ATTRIBUTE DATA FORM - FENCING & SIGNS (NON MUTCD)"]
[]
[null,null,null,null,"NOTE: If assets are supplied in AutoCAD format, the information in the table below must be completed.  If assets are supplied in ASCII file format, the following information must be supplied in the file along with object X and Y (& Z where required) Coord"]
[null,null,null,null,"Entry ID","Fence Type","Post Material","Panel Material","Length","Height","Boundary Fence","Installation Date","Layer Name / Remarks","Assets Status","Status"]
["ParentCode","AssetDescription","TypeID","Asset_ID","Entry_ID","UserText1","UserText2","UserText3","Dimension1","Dimension2","UserCheck1","UserDate1",null,null,"Status"]
[13.006," &  - Solid Construction",1263,null,null,null,null,null,null,null,null,null,null,null,"Proposed"]
[13.006," &  - Post & Rail",1256,null,null,null,null,null,null,null,null,null,null,null,"Proposed"]
[13.006," &  - Post & Rail",1256,null,null,null,null,null,null,null,null,null,null,null,"Proposed"]
[13.006," &  - Post & Rail",1257,null,null,null,null,null,null,null,null,null,null,null,"Proposed"]
[13.006," &  - Post & Rail",1256,null,null,null,null,null,null,null,null,null,null,null,"Proposed"]
[13.006," &  - Post & Wire",1259,null,null,null,null,null,null,null,null,null,null,null,"Proposed"]
[13.006," &  - Barrier (Protective)",1251,null,null,null,null,null,null,null,null,null,null,null,"Proposed"]
[13.006," &  - Solid Construction",1263,null,null,null,null,null,null,null,null,null,null,null,"Proposed"]
[13.006," &  - Other (See Remarks)",null,null,null,null,null,null,null,null,null,null,null,null,"Proposed"]

{"sheet":"PAD_STRUCT","index":13,"n_rows":13,"n_cols":18,"rows_kept":13,"cut":false,"hidden":true,"merged":[[3,16,4,16],[3,15,4,15],[0,4,1,10],[2,4,2,10],[3,13,4,13]]}
[null,null,null,null,"PARK ATTRIBUTE DATA FORM - STRUCTURES"]
[]
[null,null,null,null,"NOTE: If assets are supplied in AutoCAD format, the information in the table below must be completed.  If assets are supplied in ASCII file format, the following information must be supplied in the file along with object X and Y (& Z where required) Coord"]
[null,null,null,null,"Entry ID","Structure Type","Floor Material","Wall Material","Roof Material","Length","Width","Area","Floor RL","Height Determined","Installation Date","Layer Name / Remarks","Assets Status","Status"]
["ParentCode","AssetDescription","TypeID","Asset_ID","Entry_ID","UserText1","UserText2","UserText3","UserText4","Dimension1","Dimension2","Dimension3","Dimension4",null,"UserDate1",null,null,"Status"]
[13.006,"Shelter - Reinforced Concrete Floor, No Walls Walls, Timber Roof",1267,null,null,null,null,null,null,null,null,null,null,null,null,null,null,"Proposed"]
[13.006,"Shelter - Concrete Paved Floor, No Walls Walls, Timber Roof",1267,null,null,null,null,null,null,null,null,null,null,null,null,null,null,"Proposed"]
[13.006,"Shelter - Concrete Paved Floor, No Walls Walls, Timber Roof",1267,null,null,null,null,null,null,null,null,null,null,null,null,null,null,"Proposed"]
[13.006,"Shelter - Concrete Paved Floor, No Walls Walls, Timber Roof",1267,null,null,null,null,null,null,null,null,null,null,null,null,null,null,"Proposed"]
[13.006,"Shelter - Concrete Paved Floor, No Walls Walls, Timber Roof",1267,null,null,null,null,null,null,null,null,null,null,null,null,null,null,"Proposed"]
[13.006,"Amenities Block - Reinforced Concrete Floor, Concrete Block Walls, Timber Roof",1267,null,null,null,null,null,null,null,null,null,null,null,null,null,null,"Proposed"]
[13.006,"Storage Shed - Reinforced Concrete Floor, Concrete Block Walls, Fibre Cement Sheeting Roof",552,null,null,null,null,null,null,null,null,null,null,null,null,null,null,"Proposed"]
[13.006,"Shelter - Concrete Paved Floor, No Walls Walls, Timber Roof",1267,null,null,null,null,null,null,null,null,null,null,null,null,null,null,"Proposed"]

{"sheet":"PAD_FURN","index":14,"n_rows":13,"n_cols":12,"rows_kept":13,"cut":false,"hidden":true,"merged":[[3,9,4,9],[3,10,4,10],[0,4,1,10],[2,4,2,10]]}
[null,null,null,null,"PARK ATTRIBUTE DATA FORM - FURNITURE / BBQ / PLAY EQUIPMENT"]
[]
[null,null,null,null,"NOTE: If assets are supplied in AutoCAD format, the information in the table below must be completed.  If assets are supplied in ASCII file format, the following information must be supplied in the file along with object X and Y (& Z where required) Coord"]
[null,null,null,null,"Entry ID","Furniture Type","Construction Material","Equipment Manufacturer","Installation Date","Layer Name / Remarks","Assets  Status","Status"]
["ParentCode","AssetDescription","TypeID","Asset_ID","Entry_ID","UserText1","UserText2","UserText3","UserDate1",null,null,"Status"]
[13.006," Natural Stone BBQ - Gas",111,null,null,null,null,null,null,null,null,"Proposed"]
[13.006," Metal Coloured Bench",555,null,null,null,null,null,null,null,null,"Proposed"]
[13.006," Concrete Cast BBQ - Electric",333,null,null,null,null,null,null,null,null,"Proposed"]
[13.006," Timber Bench",555,null,null,null,null,null,null,null,null,"Proposed"]
[13.006," Metal Coloured Bench",555,null,null,null,null,null,null,null,null,"Proposed"]
[13.006," Metal Galv/Zinc Table With Benches",666,null,null,null,null,null,null,null,null,"Proposed"]
[13.006," Concrete Cast Bench",555,null,null,null,null,null,null,null,null,"Proposed"]
[13.006," Timber Bench",555,null,null,null,null,null,null,null,null,"Proposed"]

{"sheet":"PAD_EQUIP","index":15,"n_rows":13,"n_cols":13,"rows_kept":13,"cut":false,"hidden":true,"merged":[[3,11,4,11],[3,10,4,10],[0,4,1,10],[2,4,2,10]]}
[null,null,null,null,"PARK ATTRIBUTE DATA FORM - EQUIPMENT"]
[]
[null,null,null,null,"NOTE: If assets are supplied in AutoCAD format, the information in the table below must be completed.  If assets are supplied in ASCII file format, the following information must be supplied in the file along with object X and Y (& Z where required) Coord"]
[null,null,null,null,"Entry ID","Equipment Type","Description","Model Information","Manufacturer","Installation Date","Layer Name / Remarks","Assets Status","Status"]
["ParentCode","AssetDescription","TypeID","Asset_ID","Entry_ID","UserText1","Usertext2","UserText3","UserText4","UserDate1",null,null,"Status"]
[13.006," Slide",111,null,null,null,null,null,null,null,null,null,"Proposed"]
[13.006," Swing",112,null,null,null,null,null,null,null,null,null,"Proposed"]
[13.006," Spring Toy",113,null,null,null,null,null,null,null,null,null,"Proposed"]
[13.006," Balance Toy",114,null,null,null,null,null,null,null,null,null,"Proposed"]
[13.006," Skateboard Park",115,null,null,null,null,null,null,null,null,null,"Proposed"]
[13.006," Climbing Structure",116,null,null,null,null,null,null,null,null,null,"Proposed"]
[13.006," Adventure Playground",117,null,null,null,null,null,null,null,null,null,"Proposed"]
[13.006," Other (See Remarks)","ERROR",null,null,null,null,null,null,null,null,null,"Proposed"]

{"sheet":"PAD_VALD","index":16,"n_rows":43,"n_cols":7,"rows_kept":43,"cut":false,"hidden":true,"merged":[[34,5,34,6],[29,0,29,1],[0,0,0,2],[0,5,0,6],[19,5,19,6],[25,5,25,6],[15,0,15,3]]}
["PARKS FENCES",null,null,null,null,"CQ_FENCE_TYPEID_LOOKUPS"]
["PAD_FENCE_TYPE","PAD_FENCE_POST_MATERIAL","PAD_FENCE_PANEL_MATERIAL"]
[null,null,null,null,null,"Post & Rail 0-1m Height",1255]
["Post & Rail","Timber","Timber Paling",null,null,"Post & Rail 1-2m Height",1256]
["Post & Wire","Metal","Timber Sheeting",null,null,"Post & Rail 2-3m Height",1257]
["Barrier (Protective)","Clay Brick","Metal Sheeting",null,null,"Post & Rail 3-4m Height",1258]
["Solid Construction","Concrete Cast","Metal Weld Mesh",null,null,"Barrier (Protective) 0-1m Height",1251]
["Other (See Remarks)","Concrete Block","Metal Chain Mesh",null,null,"Barrier (Protective) 1-2m Height",1252]
[null,null,"Metal Wire Strand",null,null,"Barrier (Protective) 2-3m Height",1253]
[null,null,"Metal Wire Mesh",null,null,"Barrier (Protective) 3-4m Height",1254]
[null,null,"Clay Brick",null,null,"Post & Wire 0-1m Height",1259]
[null,null,"Concrete Block",null,null,"Post & Wire 1-2m Height",1260]
[null,null,"Fibre Cement Sheeting",null,null,"Post & Wire 2-3m Height",1261]
[null,null,"No Panels",null,null,"Post & Wire 3-4m Height",1262]
[null,null,null,null,null,"Solid Construction 0-1m Height",1263]
["PARKS STRUCTURES",null,null,null,null,"Solid Construction 1-2m Height",1264]
["PAD_STRUCTURE_TYPE","PAD_STRUCT_FLOOR_MATERIAL","PAD_STRUCT_WALLS_MATERIAL","PAD_STRUCT_ROOF_MATERIAL",null,"Solid Construction 2-3m Height",1265]
[null,null,null,null,null,"Solid Construction 3-4m Height",1266]
["Shelter","Timber","No Walls","Timber"]
["Amenities Block","Bare Earth","Timber","Shadecloth",null,"CQ_STRUCTURE_TYPEID_LOOKUPS"]
["Storage Shed","Natural Stone","Clay Brick","Tile Clay/Concrete"]
["Other (See Remarks)","Concrete Paved","Natural Stone"," Metal Sheet Coloured",null,"Shelter",1267]
[null,"Concrete Reinforced","Concrete Cast","Metal Sheet GaIv/Zinc",null,"Toilet Block",548]
[null,"Other (See Remarks)","Concrete Block","Fibre Cement Sheeting",null,"Storage Shed",552]
[null,null,"Metal Sheet Coloured","Suspended Concrete"]
[null,null,"Metal Sheet Galv/Zinc","Other (See Remarks)",null,"CQ_FURNITURE_TYPEID_LOOKUPS"]
[null,null,"Fibre Cement Sheeting"]
[null,null,"Other (See Remarks)",null,null,"BBQ - Gas",111]
[null,null,null,null,null,"BBQ - Wood",222]
["PARKS FURNITURE",null,null,"PARKS FURNITURE",null,"BBQ - Electric",333]
["PAD_FURNITURE_TYPE","PAD_FURNITURE_MATERIAL",null,"EQUIPMENT_TYPE",null,"Table",444]
[null,null,null,null,null,"Bench",555]
["BBQ - Gas","Timber",null,"Slide",null,"Table With Benches",666]
["BBQ - Wood","Metal Galv/Zinc",null,"Swing"]
["BBQ - Electric","Metal Coloured",null,"Spring Toy",null,"CQ_PLAYEQUIP_TYPEID_LOOKUPS"]
["Table","Stainless Steel",null,"Balance Toy"]
["Bench","Clay Brick",null,"Skateboard Park",null,"Slide",111]
["Table With Benches","Natural Stone",null,"Climbing Structure",null,"Swing",112]
[null,"Concrete Cast",null,"Adventure Playground",null,"Spring Toy",113]
[null,"Concrete Block",null,"Other (See Remarks)",null,"Balance Toy",114]
[null,"Other (See Remarks)",null,null,null,"Skateboard Park",115]
[null,null,null,null,null,"Climbing Structure",116]
[null,null,null,null,null,"Adventure Playground",117]

{"sheet":"MAD_RETWALL","index":17,"n_rows":10,"n_cols":16,"rows_kept":10,"cut":false,"hidden":true,"merged":[[1,13,2,13],[0,4,1,11],[3,13,4,13],[2,4,2,11],[3,14,4,14],[3,11,4,11]]}
[null,null,null,null,"MISCELLANEOUS ATTRIBUTE DATA FORM - RETAINING WALLS"]
[]
[null,null,null,null,"NOTE: If assets are supplied in AutoCAD format, the information in the table below must be completed.  If assets are supplied in ASCII file format, the following information must be supplied in the file along with object X and Y (& Z where required) Coord"]
[null,null,null,null,"Entry ID","Setback","Max Wall Height","Length","Construction Type","Manufacturer","Construction Material","Height Determined","Installation Date","Layer Name / Remarks","Assets Status","Status"]
["ParentCode","AssetDescription","TypeID","Asset_ID","Entry_ID","Dimension1","Dimension2","Dimension3","UserText1","UserText2","UserText3",null,"UserDate1",null,null,"Status"]
[null,null,null,null,null,null,null,null,null,null,null,null,null,null,null,"Proposed"]
[null,null,null,null,null,null,null,null,null,null,null,null,null,null,null,"Proposed"]
[null,null,null,null,null,null,null,null,null,null,null,null,null,null,null,"Proposed"]
[null,null,null,null,null,null,null,null,null,null,null,null,null,null,null,"Proposed"]
[null,null,null,null,null,null,null,null,null,null,null,null,null,null,null,"Proposed"]

{"sheet":"MAD_DEVBDY","index":18,"n_rows":4,"n_cols":6,"rows_kept":4,"cut":false,"hidden":true,"merged":[[2,0,2,5],[0,0,1,5]]}
["MISCELLANEOUS ATTRIBUTE DATA FORM - DEVELOPMENT BOUNDARY"]
[]
["NOTE: If assets are supplied in AutoCAD format, the information in the table below must be completed.  If assets are supplied in ASCII file format, the following information must be supplied in the file along with object X and Y (& Z where required) Coord"]
["Development\n Name","Development Stage","Developer","Installation \nDate","Layer Name / Remarks","Data Source"]

{"sheet":"MAD_VALD","index":19,"n_rows":11,"n_cols":3,"rows_kept":11,"cut":false,"hidden":true,"merged":[]}
["RET_WALL_TYPE","RET_WALL_MATERIAL","RETWALL_TYPEID"]
[]
["Anchored","Gabions",1111]
["Cantilever","Concrete Block - Core Filled"]
["Gravity","Concrete Block - Interlocking Block"]
["Sheet Piled","Concrete Slabs - PC"]
["Other (See Remarks)","Concrete Slabs - CIS"]
[null,"Steel"]
[null,"Stone - Abutted"]
[null,"Stone - Grouted"]
[null,"Timber"]

{"sheet":"GENERIC_VALD","index":20,"n_rows":22,"n_cols":5,"rows_kept":22,"cut":false,"hidden":true,"merged":[]}
["HEIGHT_DETERMINED","ASSET_STATUS","GENERIC_COUNT","GEN_LOGICAL","CONSTRUCTION_METHOD"]
[]
["RTK GPS","New",1,"Yes","Pre-Cast"]
["Uncorrected GPS","Modified",2,"No","Cast Insitu"]
["Total Station","Removed",3,null,"Blockwork"]
["Spirit Levelling",null,4]
[null,null,5]
[null,null,6]
[null,null,7]
[null,null,8]
[null,null,9]
[null,null,10]
[null,null,11]
[null,null,12]
[null,null,13]
[null,null,14]
[null,null,15]
[null,null,16]
[null,null,17]
[null,null,18]
[null,null,19]
[null,null,20]